[Event "Titled Tuesday Blitz October 31 Late 2023"]
[White "Sramek, Vojtech"]
[Black "JackRodgers"]
[WhiteFideId "358681"]
[WhiteElo "2277"]
[BlackElo "2532"]
[Result "1/2-1/2"]
[Round "3"]
[TimeControl "180+1"]
[Date "2023.10.31"]
[WhiteClock "0:00:13"]
[BlackClock "0:00:08"]
[Board "110"]

1. e4 {[%clk 0:03:00]}  c5 {[%clk 0:03:00]} 2. Nf3 {[%clk 0:03:00]}  g6 {[%clk 0:03:00]} 3. d4 {[%clk 0:02:59]}  cxd4 {[%clk 0:03:01]} 4. Nxd4 {[%clk 0:03:00]}  Bg7 {[%clk 0:03:01]} 5. c4 {[%clk 0:03:00]}  Nc6 {[%clk 0:03:01]} 6. Be3 {[%clk 0:02:59]}  Nf6 {[%clk 0:03:02]} 7. Nc3 {[%clk 0:02:59]}  Nb4 {[%clk 0:03:02]} 8. Be2 {[%clk 0:02:51]}  O-O {[%clk 0:02:59]} 9. O-O {[%clk 0:02:49]}  d6 {[%clk 0:02:54]} 10. f3 {[%clk 0:02:47]}  Be6 {[%clk 0:02:49]} 11. Qd2 {[%clk 0:02:47]}  Rc8 {[%clk 0:02:47]} 12. a3 {[%clk 0:02:27]}  Nc6 {[%clk 0:02:45]} 13. Nd5 {[%clk 0:02:22]}  Bxd5 {[%clk 0:02:36]} 14. cxd5 {[%clk 0:02:23]}  Nxd4 {[%clk 0:02:36]} 15. Bxd4 {[%clk 0:02:23]}  Nd7 {[%clk 0:02:37]} 16. Rfc1 {[%clk 0:02:14]}  Bxd4+ {[%clk 0:02:35]} 17. Qxd4 {[%clk 0:02:14]}  Qb6 {[%clk 0:02:35]} 18. Qxb6 {[%clk 0:02:10]}  Nxb6 {[%clk 0:02:36]} 19. b3 {[%clk 0:02:02]}  Rxc1+ {[%clk 0:02:35]} 20. Rxc1 {[%clk 0:02:02]}  Rc8 {[%clk 0:02:36]} 21. Rxc8+ {[%clk 0:02:03]}  Nxc8 {[%clk 0:02:37]} 22. Kf2 {[%clk 0:02:03]}  e6 {[%clk 0:02:32]} 23. dxe6 {[%clk 0:01:59]}  fxe6 {[%clk 0:02:33]} 24. Ke3 {[%clk 0:02:00]}  Kf7 {[%clk 0:02:33]} 25. Kd4 {[%clk 0:01:59]}  Ne7 {[%clk 0:02:31]} 26. Bb5 {[%clk 0:01:45]}  a6 {[%clk 0:02:28]} 27. Bd7 {[%clk 0:01:45]}  Kf6 {[%clk 0:02:16]} 28. b4 {[%clk 0:01:39]}  g5 {[%clk 0:02:11]} 29. a4 {[%clk 0:01:30]}  h5 {[%clk 0:01:58]} 30. g3 {[%clk 0:01:20]}  h4 {[%clk 0:01:55]} 31. b5 {[%clk 0:01:11]}  axb5 {[%clk 0:01:54]} 32. Bxb5 {[%clk 0:01:01]}  Ng6 {[%clk 0:01:47]} 33. a5 {[%clk 0:00:55]}  Ke7 {[%clk 0:01:36]} 34. Bc6 {[%clk 0:00:43]}  Kd8 {[%clk 0:00:41]} 35. Bxb7 {[%clk 0:00:43]}  Kc7 {[%clk 0:00:41]} 36. Ba6 {[%clk 0:00:36]}  Ne5 {[%clk 0:00:39]} 37. Ke3 {[%clk 0:00:35]}  Nc6 {[%clk 0:00:35]} 38. Bc4 {[%clk 0:00:34]}  e5 {[%clk 0:00:31]} 39. a6 {[%clk 0:00:28]}  Kb6 {[%clk 0:00:32]} 40. gxh4 {[%clk 0:00:22]}  gxh4 {[%clk 0:00:32]} 41. f4 {[%clk 0:00:22]}  exf4+ {[%clk 0:00:22]} 42. Kxf4 {[%clk 0:00:23]}  Ne5 {[%clk 0:00:23]} 43. Be2 {[%clk 0:00:22]}  Ka7 {[%clk 0:00:16]} 44. Kf5 {[%clk 0:00:20]}  Nd7 {[%clk 0:00:12]} 45. Ke6 {[%clk 0:00:18]}  Nc5+ {[%clk 0:00:12]} 46. Kxd6 {[%clk 0:00:17]}  Nxe4+ {[%clk 0:00:12]} 47. Ke5 {[%clk 0:00:16]}  Nc3 {[%clk 0:00:12]} 48. Bf1 {[%clk 0:00:16]}  Nd1 {[%clk 0:00:11]} 49. Kf4 {[%clk 0:00:14]}  Kb6 {[%clk 0:00:10]} 50. Kf3 {[%clk 0:00:12]}  Ka7 {[%clk 0:00:08]} 51. h3 {[%clk 0:00:10]}  Kb6 {[%clk 0:00:07]} 52. Kg4 {[%clk 0:00:09]}  Ne3+ {[%clk 0:00:06]} 53. Kxh4 {[%clk 0:00:10]}  Nxf1 {[%clk 0:00:06]} 54. Kg5 {[%clk 0:00:10]}  Ng3 {[%clk 0:00:03]} 55. h4 {[%clk 0:00:10]}  Kxa6 {[%clk 0:00:04]} 56. Kg4 {[%clk 0:00:11]}  Ne4 {[%clk 0:00:04]} 57. Kf4 {[%clk 0:00:10]}  Nf6 {[%clk 0:00:03]} 58. Kg5 {[%clk 0:00:10]}  Ne4+ {[%clk 0:00:04]} 59. Kf5 {[%clk 0:00:10]}  Ng3+ {[%clk 0:00:04]} 60. Kg4 {[%clk 0:00:10]}  Ne4 {[%clk 0:00:05]} 61. Kf3 {[%clk 0:00:11]}  Nf6 {[%clk 0:00:05]} 62. Kf4 {[%clk 0:00:11]}  Kb6 {[%clk 0:00:05]} 63. Kf5 {[%clk 0:00:11]}  Nh5 {[%clk 0:00:06]} 64. Kg5 {[%clk 0:00:11]}  Ng3 {[%clk 0:00:06]} 65. Kg4 {[%clk 0:00:12]}  Ne4 {[%clk 0:00:07]} 66. h5 {[%clk 0:00:12]}  Nf6+ {[%clk 0:00:07]} 67. Kg5 {[%clk 0:00:13]}  Nxh5 {[%clk 0:00:08]} 1/2-1/2


[Site "https://www.chess.com"]

[Event "Titled Tuesday Blitz October 31 Late 2023"]
[White "Shubenkova, Veronika"]
[Black "Uddin, Mubassar"]
[WhiteFideId "44124040"]
[BlackFideId "2093944"]
[WhiteElo "2531"]
[BlackElo "2251"]
[Result "1-0"]
[Round "3"]
[TimeControl "180+1"]
[Date "2023.10.31"]
[WhiteClock "0:00:37"]
[BlackClock "0:00:00"]
[Board "111"]

1. e4 {[%clk 0:03:00]}  c6 {[%clk 0:02:59]} 2. d4 {[%clk 0:03:00]}  d5 {[%clk 0:02:59]} 3. Nc3 {[%clk 0:03:00]}  dxe4 {[%clk 0:02:59]} 4. Nxe4 {[%clk 0:03:00]}  Nf6 {[%clk 0:03:00]} 5. Nxf6+ {[%clk 0:03:00]}  exf6 {[%clk 0:03:01]} 6. c3 {[%clk 0:03:00]}  Bd6 {[%clk 0:03:00]} 7. Bd3 {[%clk 0:03:00]}  O-O {[%clk 0:03:00]} 8. Qc2 {[%clk 0:03:00]}  Re8+ {[%clk 0:03:01]} 9. Ne2 {[%clk 0:03:01]}  h5 {[%clk 0:03:01]} 10. Bd2 {[%clk 0:03:01]}  c5 {[%clk 0:02:51]} 11. O-O-O {[%clk 0:02:58]}  cxd4 {[%clk 0:02:45]} 12. Nxd4 {[%clk 0:02:56]}  Nc6 {[%clk 0:02:41]} 13. Nb5 {[%clk 0:02:54]}  Bc5 {[%clk 0:02:36]} 14. Be3 {[%clk 0:02:40]}  Qb6 {[%clk 0:02:23]} 15. Bxc5 {[%clk 0:02:39]}  Qxc5 {[%clk 0:02:24]} 16. Nc7 {[%clk 0:02:38]}  Be6 {[%clk 0:02:10]} 17. Nxa8 {[%clk 0:02:36]}  Qa5 {[%clk 0:01:56]} 18. a3 {[%clk 0:02:23]}  Rxa8 {[%clk 0:01:42]} 19. Rhe1 {[%clk 0:02:23]}  Rc8 {[%clk 0:01:38]} 20. Be4 {[%clk 0:02:07]}  Ne5 {[%clk 0:01:26]} 21. f4 {[%clk 0:02:00]}  Nc4 {[%clk 0:01:22]} 22. f5 {[%clk 0:01:57]}  Nxa3 {[%clk 0:01:10]} 23. bxa3 {[%clk 0:01:52]}  Rxc3 {[%clk 0:01:05]} 24. fxe6 {[%clk 0:01:45]}  Qxa3+ {[%clk 0:00:49]} 25. Kd2 {[%clk 0:01:44]}  Rxc2+ {[%clk 0:00:48]} 26. Bxc2 {[%clk 0:01:44]}  Qb4+ {[%clk 0:00:41]} 27. Ke2 {[%clk 0:01:42]}  Qg4+ {[%clk 0:00:40]} 28. Kf1 {[%clk 0:01:38]}  fxe6 {[%clk 0:00:38]} 29. Bb3 {[%clk 0:01:25]}  Qf5+ {[%clk 0:00:29]} 30. Kg1 {[%clk 0:01:25]}  Qc5+ {[%clk 0:00:29]} 31. Kh1 {[%clk 0:01:25]}  b5 {[%clk 0:00:25]} 32. Rxe6 {[%clk 0:01:24]}  Kh7 {[%clk 0:00:24]} 33. Re2 {[%clk 0:01:16]}  a5 {[%clk 0:00:23]} 34. Bc2+ {[%clk 0:01:15]}  Kh6 {[%clk 0:00:22]} 35. Rd8 {[%clk 0:01:10]}  g6 {[%clk 0:00:11]} 36. h4 {[%clk 0:01:04]}  Qb4 {[%clk 0:00:06]} 37. g3 {[%clk 0:00:51]}  a4 {[%clk 0:00:05]} 38. Rg8 {[%clk 0:00:48]}  f5 {[%clk 0:00:04]} 39. Re6 {[%clk 0:00:44]}  Qg4 {[%clk 0:00:00]} 40. Kh2 {[%clk 0:00:37]} 1-0


[Site "https://www.chess.com"]

[Event "Titled Tuesday Blitz October 31 Late 2023"]
[White "D`Arruda, Ricardo D."]
[Black "Elbebiber"]
[WhiteFideId "100692"]
[WhiteElo "2529"]
[BlackElo "2162"]
[Result "1/2-1/2"]
[Round "3"]
[TimeControl "180+1"]
[Date "2023.10.31"]
[WhiteClock "0:00:38"]
[BlackClock "0:00:09"]
[Board "113"]

1. d4 {[%clk 0:02:52]}  e6 {[%clk 0:02:57]} 2. e4 {[%clk 0:02:51]}  d5 {[%clk 0:02:55]} 3. Nc3 {[%clk 0:02:51]}  dxe4 {[%clk 0:02:53]} 4. Nxe4 {[%clk 0:02:50]}  Bd7 {[%clk 0:02:52]} 5. Nf3 {[%clk 0:02:50]}  Bc6 {[%clk 0:02:51]} 6. Bd3 {[%clk 0:02:50]}  Nd7 {[%clk 0:02:47]} 7. O-O {[%clk 0:02:48]}  Ngf6 {[%clk 0:02:44]} 8. Qe2 {[%clk 0:02:48]}  Nxe4 {[%clk 0:02:39]} 9. Bxe4 {[%clk 0:02:49]}  Bxe4 {[%clk 0:02:39]} 10. Qxe4 {[%clk 0:02:50]}  c6 {[%clk 0:02:38]} 11. Bf4 {[%clk 0:02:47]}  Be7 {[%clk 0:02:27]} 12. c3 {[%clk 0:02:44]}  Nf6 {[%clk 0:02:24]} 13. Qe2 {[%clk 0:02:43]}  O-O {[%clk 0:02:21]} 14. Rfe1 {[%clk 0:02:42]}  Re8 {[%clk 0:02:19]} 15. Rad1 {[%clk 0:02:42]}  Qa5 {[%clk 0:02:11]} 16. a3 {[%clk 0:02:40]}  Rad8 {[%clk 0:02:09]} 17. h3 {[%clk 0:02:40]}  Nd5 {[%clk 0:01:58]} 18. Bg3 {[%clk 0:02:38]}  Bd6 {[%clk 0:01:45]} 19. Ne5 {[%clk 0:02:35]}  Bxe5 {[%clk 0:01:34]} 20. Bxe5 {[%clk 0:02:36]}  Ne7 {[%clk 0:01:26]} 21. Qg4 {[%clk 0:02:26]}  Ng6 {[%clk 0:01:23]} 22. Bg3 {[%clk 0:02:21]}  Qb5 {[%clk 0:01:16]} 23. Rd2 {[%clk 0:02:13]}  Qf5 {[%clk 0:00:59]} 24. Qe2 {[%clk 0:02:05]}  Nf4 {[%clk 0:00:53]} 25. Qe4 {[%clk 0:01:47]}  Qxe4 {[%clk 0:00:51]} 26. Rxe4 {[%clk 0:01:48]}  Nd5 {[%clk 0:00:48]} 27. Rde2 {[%clk 0:01:47]}  Nf6 {[%clk 0:00:48]} 28. R4e3 {[%clk 0:01:46]}  Rd5 {[%clk 0:00:46]} 29. Be5 {[%clk 0:01:43]}  Nd7 {[%clk 0:00:45]} 30. Bg3 {[%clk 0:01:44]}  Nb6 {[%clk 0:00:44]} 31. Re1 {[%clk 0:01:41]}  h6 {[%clk 0:00:43]} 32. b3 {[%clk 0:01:40]}  Rd7 {[%clk 0:00:40]} 33. a4 {[%clk 0:01:39]}  Nd5 {[%clk 0:00:38]} 34. Rd3 {[%clk 0:01:37]}  Nf6 {[%clk 0:00:38]} 35. Red1 {[%clk 0:01:36]}  Red8 {[%clk 0:00:38]} 36. Be5 {[%clk 0:01:36]}  Nd5 {[%clk 0:00:37]} 37. Kf1 {[%clk 0:01:34]}  Ne7 {[%clk 0:00:37]} 38. g4 {[%clk 0:01:33]}  c5 {[%clk 0:00:34]} 39. Ke2 {[%clk 0:01:33]}  cxd4 {[%clk 0:00:34]} 40. Bxd4 {[%clk 0:01:25]}  a6 {[%clk 0:00:30]} 41. f4 {[%clk 0:01:17]}  Nc6 {[%clk 0:00:30]} 42. Bb6 {[%clk 0:01:15]}  Rxd3 {[%clk 0:00:29]} 43. Rxd3 {[%clk 0:01:16]}  Rxd3 {[%clk 0:00:27]} 44. Kxd3 {[%clk 0:01:17]}  Kf8 {[%clk 0:00:27]} 45. Ke4 {[%clk 0:01:12]}  Ke7 {[%clk 0:00:26]} 46. Bc5+ {[%clk 0:01:12]}  Ke8 {[%clk 0:00:25]} 47. b4 {[%clk 0:01:12]}  g6 {[%clk 0:00:23]} 48. f5 {[%clk 0:01:11]}  exf5+ {[%clk 0:00:22]} 49. gxf5 {[%clk 0:01:11]}  Kd7 {[%clk 0:00:19]} 50. b5 {[%clk 0:01:06]}  axb5 {[%clk 0:00:19]} 51. axb5 {[%clk 0:01:06]}  Nd8 {[%clk 0:00:19]} 52. Ke5 {[%clk 0:01:00]}  gxf5 {[%clk 0:00:17]} 53. Kxf5 {[%clk 0:00:59]}  Ne6 {[%clk 0:00:17]} 54. Be3 {[%clk 0:00:59]}  h5 {[%clk 0:00:17]} 55. Kf6 {[%clk 0:00:58]}  Ke8 {[%clk 0:00:15]} 56. c4 {[%clk 0:00:58]}  Nc7 {[%clk 0:00:14]} 57. Kg5 {[%clk 0:00:57]}  Ke7 {[%clk 0:00:13]} 58. Kxh5 {[%clk 0:00:52]}  Kf6 {[%clk 0:00:13]} 59. Bf4 {[%clk 0:00:48]}  Ne6 {[%clk 0:00:13]} 60. Kg4 {[%clk 0:00:48]}  Nd4 {[%clk 0:00:12]} 61. h4 {[%clk 0:00:46]}  Nf5 {[%clk 0:00:11]} 62. h5 {[%clk 0:00:45]}  Nd4 {[%clk 0:00:09]} 63. Be3 {[%clk 0:00:43]}  Nb3 {[%clk 0:00:08]} 64. h6 {[%clk 0:00:42]}  Kg6 {[%clk 0:00:08]} 65. Kf3 {[%clk 0:00:42]}  Na5 {[%clk 0:00:07]} 66. c5 {[%clk 0:00:40]}  Nc4 {[%clk 0:00:07]} 67. c6 {[%clk 0:00:39]}  bxc6 {[%clk 0:00:07]} 68. bxc6 {[%clk 0:00:40]}  Ne5+ {[%clk 0:00:07]} 69. Ke4 {[%clk 0:00:37]}  Nxc6 {[%clk 0:00:08]} 70. Bf4 {[%clk 0:00:37]}  Ne7 {[%clk 0:00:08]} 71. Bd2 {[%clk 0:00:36]}  Nf5 {[%clk 0:00:08]} 72. Ke5 {[%clk 0:00:37]}  Nxh6 {[%clk 0:00:08]} 73. Bxh6 {[%clk 0:00:37]}  Kxh6 {[%clk 0:00:09]} 74. Kf6 {[%clk 0:00:37]}  Kh5 {[%clk 0:00:09]} 75. Kxf7 {[%clk 0:00:38]} 1/2-1/2


[Site "https://www.chess.com"]

[Event "Titled Tuesday Blitz October 31 Late 2023"]
[White "Michalski, Olaf"]
[Black "subham777"]
[WhiteFideId "1106740"]
[WhiteElo "2113"]
[BlackElo "2524"]
[Result "1-0"]
[Round "3"]
[TimeControl "180+1"]
[Date "2023.10.31"]
[WhiteClock "0:00:10"]
[BlackClock "0:00:04"]
[Board "117"]

1. d4 {[%clk 0:03:00]}  d5 {[%clk 0:02:59]} 2. c4 {[%clk 0:03:00]}  e6 {[%clk 0:02:57]} 3. Nc3 {[%clk 0:02:59]}  Nf6 {[%clk 0:02:57]} 4. Bg5 {[%clk 0:03:00]}  Be7 {[%clk 0:02:56]} 5. e3 {[%clk 0:03:01]}  O-O {[%clk 0:02:56]} 6. Rc1 {[%clk 0:03:01]}  a6 {[%clk 0:02:54]} 7. Nf3 {[%clk 0:02:58]}  Ne4 {[%clk 0:02:52]} 8. Nxe4 {[%clk 0:02:50]}  dxe4 {[%clk 0:02:51]} 9. Bxe7 {[%clk 0:02:50]}  Qxe7 {[%clk 0:02:52]} 10. Nd2 {[%clk 0:02:50]}  f5 {[%clk 0:02:52]} 11. c5 {[%clk 0:02:50]}  Nd7 {[%clk 0:02:49]} 12. Nc4 {[%clk 0:02:35]}  Nf6 {[%clk 0:02:46]} 13. Ne5 {[%clk 0:02:34]}  f4 {[%clk 0:02:38]} 14. exf4 {[%clk 0:02:12]}  Nd5 {[%clk 0:02:30]} 15. g3 {[%clk 0:02:10]}  e3 {[%clk 0:02:25]} 16. f3 {[%clk 0:01:50]}  b6 {[%clk 0:02:19]} 17. Bc4 {[%clk 0:01:44]}  bxc5 {[%clk 0:01:27]} 18. Bxd5 {[%clk 0:01:43]}  exd5 {[%clk 0:01:27]} 19. Rxc5 {[%clk 0:01:43]}  a5 {[%clk 0:00:56]} 20. Qb3 {[%clk 0:01:31]}  Be6 {[%clk 0:00:19]} 21. Qxe3 {[%clk 0:01:24]}  Rab8 {[%clk 0:00:19]} 22. Nc6 {[%clk 0:01:21]}  Qd6 {[%clk 0:00:18]} 23. Nxb8 {[%clk 0:01:18]}  Rxb8 {[%clk 0:00:19]} 24. O-O {[%clk 0:01:14]}  Rxb2 {[%clk 0:00:17]} 25. Rfc1 {[%clk 0:00:45]}  Qa6 {[%clk 0:00:13]} 26. Rc6 {[%clk 0:00:25]}  Qe2 {[%clk 0:00:02]} 27. Qxe6+ {[%clk 0:00:22]}  Qxe6 {[%clk 0:00:01]} 28. Rxe6 {[%clk 0:00:21]}  Rxa2 {[%clk 0:00:02]} 29. Rxc7 {[%clk 0:00:20]}  h6 {[%clk 0:00:03]} 30. Rd6 {[%clk 0:00:19]}  a4 {[%clk 0:00:03]} 31. Rxd5 {[%clk 0:00:19]}  a3 {[%clk 0:00:03]} 32. Ra5 {[%clk 0:00:19]}  Ra1+ {[%clk 0:00:03]} 33. Kg2 {[%clk 0:00:19]}  Ra2+ {[%clk 0:00:03]} 34. Kh3 {[%clk 0:00:19]}  Kh7 {[%clk 0:00:03]} 35. Rca7 {[%clk 0:00:18]}  Rd2 {[%clk 0:00:02]} 36. Rxa3 {[%clk 0:00:17]}  Rxd4 {[%clk 0:00:03]} 37. R3a6 {[%clk 0:00:17]}  Rd3 {[%clk 0:00:03]} 38. Kg2 {[%clk 0:00:16]}  Rd2+ {[%clk 0:00:04]} 39. Kh3 {[%clk 0:00:16]}  Rd3 {[%clk 0:00:04]} 40. Kg4 {[%clk 0:00:16]}  Rd2 {[%clk 0:00:03]} 41. h4 {[%clk 0:00:16]}  Rd5 {[%clk 0:00:03]} 42. h5 {[%clk 0:00:16]}  Rd1 {[%clk 0:00:02]} 43. Rg6 {[%clk 0:00:15]}  Rd5 {[%clk 0:00:02]} 44. Rgxg7+ {[%clk 0:00:14]}  Kh8 {[%clk 0:00:03]} 45. Rh7+ {[%clk 0:00:14]}  Kg8 {[%clk 0:00:03]} 46. Rxh6 {[%clk 0:00:14]}  Rd1 {[%clk 0:00:03]} 47. Rb6 {[%clk 0:00:13]}  Rd8 {[%clk 0:00:02]} 48. Rab7 {[%clk 0:00:13]}  Rd1 {[%clk 0:00:02]} 49. h6 {[%clk 0:00:11]}  Kh8 {[%clk 0:00:02]} 50. Rf6 {[%clk 0:00:10]}  Rd8 {[%clk 0:00:02]} 51. Rff7 {[%clk 0:00:10]}  Rg8+ {[%clk 0:00:03]} 52. Kh3 {[%clk 0:00:09]}  Ra8 {[%clk 0:00:03]} 53. Rh7+ {[%clk 0:00:09]}  Kg8 {[%clk 0:00:03]} 54. Rbg7+ {[%clk 0:00:09]}  Kf8 {[%clk 0:00:04]} 55. Rh8# {[%clk 0:00:10]} 1-0


[Site "https://www.chess.com"]

[Event "Titled Tuesday Blitz October 31 Late 2023"]
[White "TimGrutter03"]
[Black "Djordjevic, Dejan N"]
[BlackFideId "913316"]
[WhiteElo "2523"]
[BlackElo "2032"]
[Result "1-0"]
[Round "3"]
[TimeControl "180+1"]
[Date "2023.10.31"]
[WhiteClock "0:02:20"]
[BlackClock "0:02:07"]
[Board "118"]

1. d4 {[%clk 0:03:00]}  Nf6 {[%clk 0:02:58]} 2. Qd3 {[%clk 0:03:01]}  d6 {[%clk 0:02:49]} 3. e4 {[%clk 0:03:00]}  a6 {[%clk 0:02:36]} 4. Nc3 {[%clk 0:03:00]}  b5 {[%clk 0:02:35]} 5. a3 {[%clk 0:03:00]}  Bb7 {[%clk 0:02:35]} 6. f4 {[%clk 0:03:00]}  e6 {[%clk 0:02:34]} 7. Nf3 {[%clk 0:03:00]}  Nbd7 {[%clk 0:02:33]} 8. e5 {[%clk 0:02:58]}  Nd5 {[%clk 0:02:27]} 9. Ne4 {[%clk 0:02:55]}  N5b6 {[%clk 0:02:25]} 10. Neg5 {[%clk 0:02:50]}  h6 {[%clk 0:02:23]} 11. Nxe6 {[%clk 0:02:49]}  fxe6 {[%clk 0:02:20]} 12. Qg6+ {[%clk 0:02:47]}  Ke7 {[%clk 0:02:20]} 13. Ng5 {[%clk 0:02:20]}  Qe8 {[%clk 0:02:11]} 14. Qxe6+ {[%clk 0:02:19]}  Kd8 {[%clk 0:02:07]} 15. Nf7+ {[%clk 0:02:20]} 1-0


[Site "https://www.chess.com"]

[Event "Titled Tuesday Blitz October 31 Late 2023"]
[White "PapaieDudu"]
[Black "Vargas, Mauricio"]
[BlackFideId "4404572"]
[WhiteElo "2315"]
[BlackElo "1856"]
[Result "1-0"]
[Round "3"]
[TimeControl "180+1"]
[Date "2023.10.31"]
[WhiteClock "0:02:25"]
[BlackClock "0:00:00"]
[Board "120"]

1. e4 {[%clk 0:03:00]}  c5 {[%clk 0:02:57]} 2. Nf3 {[%clk 0:03:01]}  Nc6 {[%clk 0:02:56]} 3. d4 {[%clk 0:03:01]}  cxd4 {[%clk 0:02:55]} 4. Nxd4 {[%clk 0:03:01]}  Nxd4 {[%clk 0:02:55]} 5. Qxd4 {[%clk 0:03:01]}  d6 {[%clk 0:02:54]} 6. c4 {[%clk 0:03:00]}  Qa5+ {[%clk 0:02:50]} 7. Nc3 {[%clk 0:03:00]}  Nf6 {[%clk 0:02:44]} 8. Bd2 {[%clk 0:03:00]}  Bg4 {[%clk 0:02:35]} 9. h3 {[%clk 0:02:58]}  Bh5 {[%clk 0:02:33]} 10. g4 {[%clk 0:02:58]}  Bg6 {[%clk 0:02:33]} 11. f4 {[%clk 0:02:56]}  e6 {[%clk 0:02:30]} 12. f5 {[%clk 0:02:53]}  exf5 {[%clk 0:02:24]} 13. exf5 {[%clk 0:02:54]}  Bxf5 {[%clk 0:02:12]} 14. gxf5 {[%clk 0:02:55]}  Qxf5 {[%clk 0:02:09]} 15. O-O-O {[%clk 0:02:54]}  Ke7 {[%clk 0:01:52]} 16. Bd3 {[%clk 0:02:54]}  Qd7 {[%clk 0:01:42]} 17. Bg5 {[%clk 0:02:51]}  Kd8 {[%clk 0:01:36]} 18. Nd5 {[%clk 0:02:48]}  Be7 {[%clk 0:01:28]} 19. Nxe7 {[%clk 0:02:48]}  Qxe7 {[%clk 0:01:26]} 20. c5 {[%clk 0:02:47]}  Rc8 {[%clk 0:01:23]} 21. Kb1 {[%clk 0:02:38]}  Rxc5 {[%clk 0:01:20]} 22. Rhe1 {[%clk 0:02:35]}  Qc7 {[%clk 0:01:15]} 23. Bxf6+ {[%clk 0:02:34]}  gxf6 {[%clk 0:01:13]} 24. Qxf6+ {[%clk 0:02:35]}  Kd7 {[%clk 0:01:10]} 25. Qxh8 {[%clk 0:02:31]}  Kc6 {[%clk 0:01:06]} 26. Rc1 {[%clk 0:02:27]}  Kb6 {[%clk 0:00:58]} 27. Rxc5 {[%clk 0:02:25]}  dxc5 {[%clk 0:00:00]} 28. Qf6+ {[%clk 0:02:25]} 1-0


[Site "https://www.chess.com"]

[Event "Titled Tuesday Blitz October 31 Late 2023"]
[White "Chan, Luis"]
[Black "Nikolova, Adriana"]
[WhiteFideId "3216357"]
[BlackFideId "2908689"]
[WhiteElo "2566"]
[BlackElo "2397"]
[Result "1-0"]
[Round "3"]
[TimeControl "180+1"]
[Date "2023.10.31"]
[WhiteClock "0:00:34"]
[BlackClock "0:00:00"]
[Board "122"]

1. b3 {[%clk 0:03:00]}  d5 {[%clk 0:02:58]} 2. Bb2 {[%clk 0:03:01]}  Nf6 {[%clk 0:02:57]} 3. e3 {[%clk 0:03:01]}  a6 {[%clk 0:02:54]} 4. Nf3 {[%clk 0:03:00]}  c5 {[%clk 0:02:54]} 5. d4 {[%clk 0:02:54]}  Nc6 {[%clk 0:02:52]} 6. Be2 {[%clk 0:02:52]}  g6 {[%clk 0:02:52]} 7. O-O {[%clk 0:02:49]}  cxd4 {[%clk 0:02:52]} 8. Nxd4 {[%clk 0:02:49]}  Bg7 {[%clk 0:02:52]} 9. c4 {[%clk 0:02:46]}  dxc4 {[%clk 0:02:30]} 10. Nxc6 {[%clk 0:02:41]}  Qxd1 {[%clk 0:02:29]} 11. Rxd1 {[%clk 0:02:40]}  bxc6 {[%clk 0:02:29]} 12. Bxc4 {[%clk 0:02:40]}  O-O {[%clk 0:02:14]} 13. Nd2 {[%clk 0:02:32]}  a5 {[%clk 0:02:09]} 14. Nf3 {[%clk 0:02:27]}  Bg4 {[%clk 0:02:04]} 15. Rac1 {[%clk 0:02:23]}  a4 {[%clk 0:02:03]} 16. b4 {[%clk 0:02:01]}  a3 {[%clk 0:01:58]} 17. Bd4 {[%clk 0:01:59]}  Rab8 {[%clk 0:01:47]} 18. Bc5 {[%clk 0:01:55]}  Rfe8 {[%clk 0:01:47]} 19. Ne5 {[%clk 0:01:30]}  Bxd1 {[%clk 0:01:25]} 20. Bxf7+ {[%clk 0:01:29]}  Kh8 {[%clk 0:00:59]} 21. Bxe8 {[%clk 0:01:27]}  Nxe8 {[%clk 0:00:57]} 22. Nxc6 {[%clk 0:01:24]}  Rc8 {[%clk 0:00:47]} 23. Rxd1 {[%clk 0:01:21]}  Rxc6 {[%clk 0:00:27]} 24. Rd8 {[%clk 0:01:20]}  Bf6 {[%clk 0:00:26]} 25. Rxe8+ {[%clk 0:01:16]}  Kg7 {[%clk 0:00:26]} 26. Ra8 {[%clk 0:00:56]}  Bb2 {[%clk 0:00:25]} 27. Ra7 {[%clk 0:00:56]}  Kf6 {[%clk 0:00:07]} 28. Bxe7+ {[%clk 0:00:49]}  Ke5 {[%clk 0:00:07]} 29. Bc5 {[%clk 0:00:48]}  Ke4 {[%clk 0:00:07]} 30. Rd7 {[%clk 0:00:46]}  g5 {[%clk 0:00:04]} 31. Kf1 {[%clk 0:00:45]}  g4 {[%clk 0:00:04]} 32. Ke2 {[%clk 0:00:46]}  h5 {[%clk 0:00:04]} 33. Rh7 {[%clk 0:00:38]}  Kd5 {[%clk 0:00:02]} 34. Kd3 {[%clk 0:00:36]}  Rc8 {[%clk 0:00:01]} 35. Rxh5+ {[%clk 0:00:36]}  Kc6 {[%clk 0:00:00]} 36. Kc4 {[%clk 0:00:34]} 1-0


[Site "https://www.chess.com"]